Workbook

Sheet Feuil1
F2: =TEXT("CALCUL FACTURE SONELGAZ",1) -> CALCUL FACTURE SONELGAZ
G4: =TEXT("NOUVEL INDEX",1) -> NOUVEL INDEX | H4: =TEXT("ANCIEN INDEX",1) -> ANCIEN INDEX
F5: =TEXT("INDEX ELECTRICITE",1) -> INDEX ELECTRICITE | G5: 20293 | H5: 19524 | I5: =G5-H5 -> 769 | J5: =N(1) -> 1 | K5: =I5*J5 -> 769 | L5: =IF(D12=K5,"Bon","Erreur") -> Bon
F6: =TEXT("INDEX GAZ",1) -> INDEX GAZ | G6: 85089 | H6: 83141 | I6: =G6-H6 -> 1948 | J6: =N(8.7) -> 8.7 | K6: =I6*J6 -> 16947.6 | L6: =IF(D19=K6,"Bon","Erreur") -> Bon
A8: =TEXT("ELECTRICITE",1) -> ELECTRICITE | B8: =TEXT("Tranche 1",1) -> Tranche 1 | C8: 125 | D8: =IF((IF(IF($K$5<125,$K$5,125)<0,0,IF($K$5<125,$K$5,125)))<0,0,(IF(IF($K$5<125,$K$5,125)<0,0,IF($K$5<125,$K$5,125)))) -> 125 | E8: =N(1.7787) -> 1.7787 | F8: =D8*E8 -> 222.3375 | G8: =SUM(F8,F9) -> 744.7 | H8: =N(0.09) -> 0.09 | I8: =G8*H8 -> 67.023 | J8: =SUM(G8,I8) -> 811.723
B9: =TEXT("Tranche 2",1) -> Tranche 2 | C9: 125 | D9: =IF(IF(($K$5-125)<250,($K$5-125),125)<0,0,IF(($K$5-125)<250,($K$5-125),125)) -> 125 | E9: =N(4.1789) -> 4.1789 | F9: =E9*D9 -> 522.3625
B10: =TEXT("Tranche 3",1) -> Tranche 3 | C10: 750 | D10: =IF(IF(($K$5-250)<250,0,IF(($K$5-250)>750,750,IF(($K$5-250)>250,($K$5-250))))<0,0,IF(($K$5-250)<250,0,IF(($K$5-250)>750,750,IF(($K$5-250)>250,($K$5-250))))) -> 519 | E10: =N(4.812) -> 4.812 | F10: =E10*D10 -> 2497.428 | G10: =SUM(F10,F11) -> 2497.428 | H10: =N(0.19) -> 0.19 | I10: =G10*H10 -> 474.51132 | J10: =SUM(G10,I10) -> 2971.93932
B11: =TEXT("Tranche 4",1) -> Tranche 4 | C11: >750 | D11: =IF(IF(($K$5-1000)<1000,($K$5-1000),($K$5-1000))<0,0,IF(($K$5-1000)<1000,($K$5-1000),($K$5-1000))) -> 0 | E11: =N(5.4796) -> 5.4796 | F11: =E11*D11 -> 0
D12: =SUM(D8:D11) -> 769 | F12: =SUM(F8:F11) -> 3242.128 | G12: =SUM(G8:G11) -> 3242.128 | I12: =SUM(I8:I11) -> 541.53432 | J12: =SUM(J8:J11) -> 3783.66232
B13: =TEXT("Taxe fixe",1) -> Taxe fixe | G13: =N(78.66) -> 78.66 | H13: =N(9%) -> 0.09 | I13: =G13*H13 -> 7.0794 | J13: =SUM(G13,I13) -> 85.7394
B14: =TEXT("Sous-total electricité",1) -> Sous-total electricité | G14: =SUM(G12,G13) -> 3320.788 | I14: =SUM(I12,I13) -> 548.61372 | J14: =SUM(J12,J13) -> 3869.40172
A15: =TEXT("GAZ",1) -> GAZ | B15: =TEXT("Tranche 1",1) -> Tranche 1 | C15: 1125 | D15: =IF(IF($K$6<1125,$K$6,1125)<0,0,IF($K$6<1125,$K$6,1125)) -> 1125 | E15: =N(0.1682) -> 0.1682 | F15: =D15*E15 -> 189.225 | G15: =SUM(F15,F16) -> 635.4125 | H15: =N(9%) -> 0.09 | I15: =G15*H15 -> 57.187125 | J15: =SUM(G15,I15) -> 692.599625
B16: =TEXT("Tranche 2",1) -> Tranche 2 | C16: 1375 | D16: =IF(IF(($K$6-1125)<2500,($K$6-1125),1375)<0,0,IF(($K$6-1125)<2500,($K$6-1125),1375)) -> 1375 | E16: =N(0.3245) -> 0.3245 | F16: =D16*E16 -> 446.1875
B17: =TEXT("Tranche 3",1) -> Tranche 3 | C17: 5000 | D17: =IF(IF(($K$6-2500)<2500,($K$6-2500),5000)<0,0,IF(($K$6-2500)<2500,($K$6-2500),5000)) -> 5000 | E17: =N(0.4025) -> 0.4025 | F17: =D17*E17 -> 2012.5 | G17: =SUM(F17,F18) -> 6357.45124 | H17: =N(19%) -> 0.19 | I17: =G17*H17 -> 1207.915736 | J17: =SUM(G17,I17) -> 7565.366976
B18: =TEXT("Tranche 4",1) -> Tranche 4 | C18: >5000 | D18: =IF(IF(($K$6-7500)<7500,($K$6-7500),($K$6-7500))<0,0,IF(($K$6-7500)<7500,($K$6-7500),($K$6-7500))) -> 9447.6 | E18: =N(0.4599) -> 0.4599 | F18: =D18*E18 -> 4344.95124
D19: =SUM(D15:D18) -> 16947.6 | F19: =SUM(F15:F18) -> 6992.86374 | G19: =SUM(G15:G18) -> 6992.86374 | I19: =SUM(I15:I18) -> 1265.102861 | J19: =SUM(J15:J18) -> 8257.966601
B20: =TEXT("Taxe fixe",1) -> Taxe fixe | G20: =N(85.5) -> 85.5 | H20: =N(9%) -> 0.09 | I20: =G20*H20 -> 7.695 | J20: =SUM(G20,I20) -> 93.195
B21: =TEXT("Sous-total gaz",1) -> Sous-total gaz | G21: =SUM(G15,G17,G20) -> 7078.36374 | I21: =SUM(I15,I17,I20) -> 1272.797861 | J21: =SUM(G21,I21) -> 8351.161601
A22: =TEXT("TAXE",1) -> TAXE | B22: =TEXT("TAXE FIXE",1) -> TAXE FIXE | J22: =N(100) -> 100
B23: =TEXT("TAXE HABITATION",1) -> TAXE HABITATION | J23: =N(150) -> 150
A24: =TEXT("Montant à payer",1) -> Montant à payer | J24: =SUM(J14,J21,J22,J23)+0.02 -> 12470.58332
A25: =TEXT("Droit de timbre",1) -> Droit de timbre | J25: =ROUNDUP((J24*1%),0) -> 125
A26: =TEXT("Montant total à payer espéces",1) -> Montant total à payer espéces | J26: =J24+J25 -> 12595.58332

Sheet Feuil3

Sheet formules
A1: =SI((SI(SI($I$1<125;0;125)<0;0;SI($I$1<125;0;125)))<0;0;(SI(SI($I$1<125;0;125)<0;0;SI($I$1<125;0;125))))
A2: =SI(SI(($I$1-125)<250;($I$1-125);125)<0;0;SI(($I$1-125)<250;($I$1-125);125))
A3: =SI(SI(($I$1-250)<250;0;SI(($I$1-250)>750;750;SI(($I$1-250)>250;($I$1-250))))<0;0;SI(($I$1-250)<250;0;SI(($I$1-250)>750;750;SI(($I$1-250)>250;($I$1-250)))))
A4: =SI(SI(($I$1-1000)<1000;($I$1-1000);SI(($I$1-1000)>1000;0))<0;0;SI(($I$1-1000)<1000;($I$1-1000);SI(($I$1-1000)>1000;0)))
A6: =SI(SI($I$2<1125;$I$2;1125)<0;0;SI($I$2<1125;$I$2;1125))
A7: =SI(SI(($I$2-1125)<2500;($I$2-1125);1375)<0;0;SI(($I$2-1125)<2500;($I$2-1125);1375))
A8: =SI(SI(($I$2-2500)<2500;($I$2-2500);5000)<0;0;SI(($I$2-2500)<2500;($I$2-2500);5000))
A9: =SI(SI(($I$2-7500)<7500;($I$2-7500);($I$2-7500))<0;0;SI(($I$2-7500)<7500;($I$2-7500);($I$2-7500)))

Sheet Feuil2
D1: 22255 | E1: 20293 | F1: =D1-E1 -> 1962 | G1: 1 | H1: =F1*G1 -> 1962
D2: 85317 | E2: 85089 | F2: =D2-E2 -> 228 | G2: 8.7 | H2: =F2*G2 -> 1983.6
A4: tr1 | B4: 125 | C4: =IF((IF(IF($H$1<125,0,125)<0,0,IF($H$1<125,0,125)))<0,0,(IF(IF($H$1<125,0,125)<0,0,IF($H$1<125,0,125)))) -> 125 | D4: 1.7787 | E4: =C4*D4 -> 222.3375 | F4: =SUM(E4,E5) -> 744.7 | G4: 0.09 | H4: =F4*G4 -> 67.023 | I4: =H4+F4 -> 811.723
A5: tr2 | B5: 125 | C5: =IF(IF(($H$1-125)<250,($H$1-125),125)<0,0,IF(($H$1-125)<250,($H$1-125),125)) -> 125 | D5: 4.1789 | E5: =C5*D5 -> 522.3625 | F5: =SUM(E6,E7) -> 8880.3752 | G5: 0.19 | H5: =F5*G5 -> 1687.271288 | I5: =H5+F5 -> 10567.64649
A6: tr3 | B6: 750 | C6: =IF(IF(($H$1-250)<250,0,IF(($H$1-250)>750,750,IF(($H$1-250)>250,($H$1-250))))<0,0,IF(($H$1-250)<250,0,IF(($H$1-250)>750,750,IF(($H$1-250)>250,($H$1-250))))) -> 750 | D6: 4.812 | E6: =C6*D6 -> 3609
A7: tr4 | B7: >750 | C7: =IF(IF(($H$1-1000)<1000,($H$1-1000),IF(($H$1-1000)>1000,0))<0,0,IF(($H$1-1000)<1000,($H$1-1000),IF(($H$1-1000)>1000,0))) -> 962 | D7: 5.4796 | E7: =C7*D7 -> 5271.3752
C8: =SUM(C7,C6,C5,C4) -> 1962
F9: 78.66 | G9: 0.09 | H9: =F9*G9 -> 7.0794 | I9: =H9+F9 -> 85.7394
F10: =SUM(F9,F5,F4) -> 9703.7352 | H10: =SUM(H9,H5,H4) -> 1761.373688 | I10: =SUM(I9,I5,I4) -> 11465.10889 | J10: ELECTRICITE
A12: tr1 | B12: 1125 | C12: =IF(IF($H$2<1125,$H$2,1125)<0,0,IF($H$2<1125,$H$2,1125)) -> 1125 | D12: 0.1682 | E12: =C12*D12 -> 189.225 | F12: =SUM(E12:E13) -> 467.8407 | G12: 0.09 | H12: =F12*G12 -> 42.105663 | I12: =F12+H12 -> 509.946363
A13: tr2 | B13: 1375 | C13: =IF(IF(($H$2-1125)<2500,($H$2-1125),1375)<0,0,IF(($H$2-1125)<2500,($H$2-1125),1375)) -> 858.6 | D13: 0.3245 | E13: =C13*D13 -> 278.6157 | F13: =SUM(E14:E15) -> 0 | G13: 0.19 | H13: =F13*G13 -> 0 | I13: =F13+H13 -> 0
A14: tr3 | B14: 5000 | C14: =IF(IF(($H$2-2500)<2500,($H$2-2500),5000)<0,0,IF(($H$2-2500)<2500,($H$2-2500),5000)) -> 0 | D14: 0.4025 | E14: =C14*D14 -> 0
A15: tr4 | B15: >5000 | C15: =IF(IF(($H$2-7500)<7500,($H$2-7500),($H$2-7500))<0,0,IF(($H$2-7500)<7500,($H$2-7500),($H$2-7500))) -> 0 | D15: 0.4599 | E15: =C15*D15 -> 0
C16: =SUM(C12:C15) -> 1983.6
F17: 85.5 | G17: 0.09 | H17: =F17*G17 -> 7.695 | I17: =F17+H17 -> 93.195
I18: =SUM(I17,I13,I12) -> 603.141363 | J18: GAZ
I19: 100
I20: 150
I21: =I20+I19+I18+I10 -> 12318.25025 | J21: TOTAL
